bitfinex/quotes_ETHUSD_20240811
["timestamp","ask_amount","ask_price","bid_price","bid_amount"]
[1723384760850,5.29832,2642.4,2641.9,2.64959]
[1723384761140,5.29832,2642.4,2641.8,0.57832476]
[1723384761341,2.64916,2642.4,2641.8,3.22799476]
[1723384761557,2.64916,2642.4,2641.9,2.97240348]
[1723384762838,2.64902,2642.5,2642.0,2.6495]
[1723384764049,2.64922,2642.3,2641.9,0.39849789]
[1723384764205,2.64922,2642.3,2641.9,0.07569441]
[1723384764940,2.64942,2642.1,2641.6,2.64984]
[1723384765141,2.64942,2642.1,2641.6,3.409918]
[1723384765349,2.64921,2642.3,2641.6,3.409918]
[1723384765647,5.29848,2642.3,2641.7,2.64975]
[1723384765953,2.64921,2642.3,2641.7,2.64975]
[1723384766149,2.64921,2642.3,2641.8,0.61353699]
[1723384766459,2.64921,2642.3,2641.8,3.33884814]
[1723384766612,5.14847,2642.5,2641.9,2.64959]
[1723384767423,2.64915,2642.4,2641.8,2.72531115]
[1723384768267,2.64915,2642.4,2641.9,2.6496]
[1723384768465,5.14847,2642.5,2642.0,5.03924]
[1723384768466,2.64907,2642.5,2642.0,5.03924]
[1723384768639,2.64907,2642.5,2642.0,5.81570012]
[1723384768834,5.29816,2642.5,2642.0,5.81570012]
[1723384769048,2.6491,2642.4,2642.0,3.16626012]
[1723384769254,2.64907,2642.5,2642.0,3.16626012]
[1723384770262,2.64907,2642.5,2641.9,0.07569448]
[1723384770471,2.64916,2642.4,2641.9,0.07569448]
[1723384771067,2.64887,2642.7,2642.0,2.6495]
[1723384771276,2.64902,2642.5,2642.0,2.6495]
[1723384771489,2.64902,2642.5,2642.1,0.27251945]
[1723384771629,2.64911,2642.4,2642.1,0.27251945]
[1723384771824,2.64911,2642.4,2641.9,2.72529448]
[1723384772036,2.64902,2642.5,2642.0,2.64941]
[1723384772560,5.29775,2642.7,2642.1,2.6494]
[1723384772770,5.29775,2642.7,2642.1,3.18685045]
[1723384772771,2.64896,2642.6,2642.1,3.18685045]
[1723384773131,2.64896,2642.6,2642.2,2.3898]
[1723384773132,2.64891,2642.6,2642.2,2.3898]
[1723384773666,2.64891,2642.6,2642.1,3.18684045]
[1723384775161,2.64885,2642.7,2642.2,3.47187504]
[1723384775665,2.64885,2642.7,2642.3,2.64919]
[1723384775878,9.9487,2642.8,2642.3,2.64915]
[1723384776256,9.9487,2642.8,2642.2,0.89829222]
[1723384776257,7.3,2642.8,2642.4,2.72477481]
[1723384776438,2.6485,2643.0,2642.4,5.11457481]
[1723384777139,5.66909939,2643.2,2642.6,2.64885]
[1723384777342,5.07617,2643.2,2642.6,3.42519248]
[1723384777551,2.64855,2643.0,2642.4,7.68791]
[1723384777783,2.6486,2642.9,2642.4,5.03882]
[1723384778275,2.6487,2642.8,2642.4,5.03882]
[1723384778438,2.6487,2642.8,2642.4,3.158605]
[1723384778939,2.64901,2642.5,2642.0,5.03923]
[1723384779341,2.64901,2642.5,2642.1,2.6494]
[1723384780380,5.29772,2642.7,2642.1,2.6494]
[1723384780582,5.29772,2642.7,2642.2,0.50392]
[1723384780879,5.29769,2642.7,2642.2,0.50392]
[1723384781083,2.64862,2642.9,2642.3,2.64914]
[1723384781285,2.64882,2642.7,2642.2,2.6493]
[1723384781481,2.64882,2642.7,2642.1,2.6494]
[1723384781482,2.64882,2642.7,2642.3,2.6492]
[1723384781642,2.64882,2642.7,2642.4,0.26492]
[1723384781988,2.64862,2642.9,2642.4,5.03884]
[1723384782277,2.64862,2642.9,2642.4,5.11452092]
[1723384783265,2.64886,2642.7,2642.1,7.68847]
[1723384783573,2.64886,2642.7,2642.1,5.03912]
[1723384783574,5.29776,2642.7,2642.1,5.03912]
[1723384783777,2.64886,2642.7,2642.2,0.503912]
[1723384784186,2.64886,2642.7,2642.2,3.153152]
[1723384784526,2.64886,2642.7,2642.2,0.503912]
[1723384784527,2.64892,2642.6,2642.2,0.503912]
[1723384784667,2.64886,2642.7,2642.2,3.153212]
[1723384784868,2.64871,2642.8,2642.3,3.4683742]
[1723384785065,2.64868,2642.9,2642.3,3.4683742]
[1723384785369,2.6485,2643.0,2642.4,2.46547953]
[1723384785571,2.6485,2643.0,2642.5,2.64895]
[1723384786401,2.64866,2642.9,2642.4,5.03888]
[1723384786602,2.64866,2642.9,2642.4,5.807682]
[1723384787165,2.64866,2642.9,2642.4,8.456732]
[1723384787382,2.64866,2642.9,2642.4,5.807652]
[1723384787590,2.64866,2642.9,2642.4,8.456702]
[1723384788100,2.64866,2642.9,2642.4,5.807652]
[1723384789310,2.64866,2642.9,2642.5,0.5807652]
[1723384789793,2.64866,2642.9,2642.5,3.2297552]
[1723384790500,2.6485,2643.0,2642.5,3.2297552]
[1723384790925,2.6485,2643.0,2642.6,2.64889]
[1723384791434,9.94841,2643.1,2642.6,2.64889]
[1723384791724,1.30947165,2643.0,2642.6,2.64889]
[1723384791928,2.6485,2643.0,2642.6,2.64889]
[1723384793832,2.6485,2643.0,2642.5,3.2297552]
[1723384794039,2.6486,2642.9,2642.5,2.64899]
[1723384794793,2.6485,2643.0,2641.9,5.64955]
[1723384794794,2.64881,2642.7,2642.2,2.64926]
[1723384795000,2.64881,2642.7,2642.1,2.64934]
[1723384795001,2.64881,2642.7,2642.3,2.6492]
[1723384796928,2.64881,2642.7,2642.0,2.890155]
[1723384796929,7.3,2643.1,2642.5,2.3252]
[1723384797303,1.30944878,2643.0,2642.5,2.3252]
[1723384797510,7.3,2643.1,2642.5,2.3252]
[1723384797838,1.30945084,2643.0,2642.5,2.822626]
[1723384798032,1.30945084,2643.0,2642.6,2.6489]
[1723384798033,2.64852,2643.0,2642.6,2.6489]
[1723384798332,9.94841,2643.1,2642.6,2.6489]
[1723384798545,2.64852,2643.0,2642.6,2.6489]
[1723384799835,2.64852,2643.0,2642.5,5.471616]
[1723384800202,2.64887,2642.7,2642.2,2.64925]
[1723384800400,2.64886,2642.7,2642.2,2.64925]
[1723384800635,5.29772,2642.7,2642.2,2.64925]
[1723384800938,2.64886,2642.7,2642.2,2.64925]
[1723384801124,2.64886,2642.7,2642.2,3.4681345]
[1723384801496,2.3919,2642.8,2642.1,2.3252]
[1723384801747,2.64885,2642.7,2642.2,2.64921]
[1723384801913,2.64858,2643.0,2642.5,2.64896]
[1723384802232,2.64858,2643.0,2642.6,0.264896]
[1723384802442,2.6486,2642.9,2642.6,0.264896]
[1723384803143,2.3919,2643.0,2642.1,3.0]
[1723384803366,2.64892,2642.6,2642.0,2.890155]
[1723384803509,2.64892,2642.6,2642.0,2.3252]
[1723384803510,2.64912,2642.4,2642.0,2.3252]
[1723384804013,5.0409,2642.5,2642.0,4.97467]
[1723384804229,5.0409,2642.5,2642.1,2.64939]
[1723384804451,2.64912,2642.4,2642.0,4.97469]
[1723384804665,2.64912,2642.4,2642.0,5.20721]
[1723384804948,2.64885,2642.7,2642.2,2.64922]
[1723384805253,5.04041,2643.0,2642.4,2.64909]
[1723384805450,3.95810029,2642.9,2642.5,4.97413]
[1723384805739,2.6486,2642.9,2642.5,5.50560384]
[1723384806242,9.94846,2643.1,2642.5,8.15455384]
[1723384806243,2.64851,2643.0,2642.5,8.15455384]
[1723384806450,2.64851,2643.0,2642.6,0.82302331]
[1723384806645,2.64851,2643.0,2642.6,3.47191331]
[1723384806852,2.64861,2642.9,2642.5,2.3252]
[1723384807147,2.64851,2643.0,2642.5,4.95715]
[1723384807639,2.64865,2642.9,2642.3,2.64913]
[1723384808006,2.64859,2643.0,2642.4,2.64905]
[1723384808403,2.64865,2642.9,2642.4,2.64905]
[1723384809022,2.64875,2642.8,2642.3,2.98971742]
[1723384809238,2.64875,2642.8,2642.4,0.52979174]
[1723384809512,2.64858,2643.0,2642.5,2.64895]
[1723384809813,1.30944883,2642.9,2642.5,2.64895]
[1723384810012,2.64855,2643.0,2642.5,2.64895]
[1723384810408,2.64855,2643.0,2642.5,5.2979]
[1723384810610,7.3,2643.1,2642.7,2.64878]
[1723384810840,7.3,2643.1,2642.8,0.76815489]
[1723384811032,2.64836,2643.2,2642.7,2.64878]
[1723384812555,2.64836,2643.2,2642.6,4.95706]
[1723384812712,2.64845,2643.1,2642.6,4.95706]
[1723384812912,2.64845,2643.1,2642.6,5.79333194]
[1723384813118,9.948,2643.5,2643.0,2.64845]
[1723384813339,2.64795,2643.6,2643.1,2.64836]
[1723384813527,2.64795,2643.6,2643.1,4.95656]
[1723384813528,1.30921617,2643.5,2643.1,4.95656]
[1723384813856,12.43413,2643.8,2643.3,2.64819]
[1723384813857,9.94773,2643.8,2643.3,2.64819]
[1723384814074,1.30914585,2643.7,2643.3,2.64814]
[1723384814225,9.94773,2643.8,2643.3,2.64813]
[1723384814420,9.94773,2643.8,2643.3,5.29628]
[1723384814838,9.94773,2643.8,2643.3,2.64813]
[1723384815041,9.94773,2643.8,2643.3,3.49296985]
[1723384815262,9.94773,2643.8,2643.6,2.64783]
[1723384815263,7.3,2643.8,2643.6,2.64783]
[1723384815462,5.13378,2644.2,2643.3,0.84483985]
[1723384815463,2.64787,2643.7,2643.3,3.15303985]
[1723384815621,2.64787,2643.7,2643.1,2.3082]
[1723384815826,2.64787,2643.7,2643.0,2.64843]
[1723384815827,2.64802,2643.5,2643.0,2.64843]
[1723384816125,2.64803,2643.5,2643.0,2.64849]
[1723384816366,2.64787,2643.7,2643.2,2.64829]
[1723384816525,5.29536,2643.9,2643.3,4.95639]
[1723384816727,2.64767,2643.9,2643.4,2.6481]
[1723384817223,2.64767,2643.9,2643.3,3.12580093]
[1723384817224,2.64775,2643.8,2643.3,3.12580093]
[1723384817426,2.64767,2643.9,2643.3,5.77394093]
[1723384817865,2.64791,2643.6,2643.1,5.452249]
[1723384818024,5.29552,2643.8,2643.1,4.95658]
[1723384818224,2.64782,2643.7,2643.1,4.95658]
[1723384818426,5.29591,2643.6,2643.1,2.3082]
[1723384818733,2.64792,2643.6,2643.1,2.3082]
[1723384818932,2.64776,2643.8,2643.2,2.64821]
[1723384819158,2.4864,2643.9,2643.3,0.07565649]
[1723384819372,7.3,2644.0,2643.6,2.64785]
[1723384819523,7.78113,2644.2,2643.6,2.64785]
[1723384819726,2.64734,2644.2,2643.6,3.41581393]
[1723384820367,2.64734,2644.2,2643.7,2.64774]
[1723384820871,9.94715,2644.4,2643.8,4.95589]
[1723384821168,12.59434,2644.4,2643.8,4.95584]
[1723384821529,2.64722,2644.3,2643.8,4.95584]
[1723384822122,7.3,2644.4,2643.9,2.64755]
[1723384822371,9.94713,2644.4,2643.9,2.64755]
[1723384822831,9.94713,2644.4,2643.8,3.14536539]
[1723384822832,2.64721,2644.3,2643.8,3.14536539]
[1723384823160,2.64721,2644.3,2643.8,5.03153061]
[1723384823536,2.64721,2644.3,2643.6,2.64783]
[1723384823736,5.13361,2644.3,2643.6,2.64783]
[1723384824874,2.64757,2644.0,2643.5,2.3082]
[1723384825182,2.64757,2644.0,2643.5,5.716604]
[1723384826365,2.64749,2644.1,2643.6,2.64789]
[1723384826764,5.29498,2644.1,2643.6,2.64789]
[1723384827077,2.6475,2644.0,2643.5,5.716624]
[1723384827256,2.6475,2644.0,2643.5,3.068624]
[1723384827457,2.64775,2643.8,2643.3,2.419]
[1723384827659,2.64775,2643.8,2643.2,5.64825]
[1723384827660,2.64781,2643.7,2643.2,2.64825]
[1723384827846,2.64781,2643.7,2643.2,5.2965]
[1723384828045,2.64781,2643.7,2643.3,0.52965]
[1723384829188,2.64781,2643.7,2643.2,2.64829]
[1723384829400,2.64791,2643.6,2643.2,2.64829]
[1723384829764,2.64791,2643.6,2643.1,2.6484]
[1723384829961,2.64791,2643.6,2643.1,3.455143]
[1723384830262,2.64816,2643.4,2643.1,0.806743]
[1723384830465,2.64821,2643.3,2642.6,2.64886]
[1723384830695,2.64842,2643.1,2642.7,0.506786]
[1723384830962,2.4765,2643.5,2642.8,2.49467182]
[1723384831165,2.64786,2643.7,2643.1,2.64834]
[1723384831484,2.64792,2643.6,2643.1,2.64834]
[1723384831859,2.64801,2643.5,2643.0,2.6485]
[1723384832072,5.29576,2643.7,2643.1,2.64839]
[1723384832273,3.55,2643.9,2643.2,5.45840621]
[1723384832274,2.64766,2643.9,2643.2,5.45840621]
[1723384832488,2.64766,2643.9,2643.2,5.3827443]
[1723384832668,2.6478,2643.7,2643.2,5.3827443]
[1723384833202,2.64766,2643.9,2643.4,2.64804]
[1723384833496,2.64766,2643.9,2643.3,0.07565503]
[1723384833497,2.64766,2643.9,2643.3,3.26204946]
[1723384833663,2.64766,2643.9,2643.3,5.91015946]
[1723384833863,5.29536,2643.9,2643.3,3.26203946]
[1723384834070,2.64771,2643.8,2643.4,0.59965538]
[1723384834259,2.64766,2643.9,2643.4,0.59965538]
[1723384834460,2.64766,2643.9,2643.3,2.64811]
[1723384834705,2.64771,2643.8,2643.3,2.64811]
[1723384835187,2.64771,2643.8,2643.3,2.72376273]
[1723384835383,2.64771,2643.8,2643.3,2.64811]
[1723384835596,2.64771,2643.8,2643.3,2.72376274]
[1723384835788,2.64771,2643.8,2643.4,0.51427627]
[1723384837066,2.64785,2643.7,2643.4,0.51427627]
[1723384837279,2.64785,2643.7,2643.2,5.06724]
[1723384838166,5.29573,2643.7,2643.1,2.64831]
[1723384838381,2.64785,2643.7,2643.1,2.64831]
[1723384838597,2.64785,2643.7,2643.2,0.506731]
[1723384839099,2.64767,2643.9,2643.2,3.155021]
[1723384839323,2.64772,2643.8,2643.3,2.64814]
[1723384839996,2.64772,2643.8,2643.2,3.154971]
[1723384840234,2.64772,2643.8,2643.3,0.3155021]
[1723384840980,2.64789,2643.7,2643.3,0.3155021]
[1723384841492,5.29548,2643.8,2643.3,2.9637021]
[1723384841805,2.64772,2643.8,2643.4,3.00270897]
[1723384843300,2.64797,2643.6,2643.2,0.506731]
[1723384843520,2.64797,2643.6,2643.1,2.64839]
[1723384843879,2.64797,2643.6,2643.2,2.64828]
[1723384844486,2.64797,2643.6,2643.1,2.64839]
[1723384844911,2.64797,2643.6,2643.1,3.419982]
[1723384845917,2.64777,2643.8,2643.3,2.64819]
[1723384846211,2.64785,2643.7,2643.2,2.6483]
[1723384846715,2.64785,2643.7,2642.8,2.64868]
[1723384846716,2.296,2643.6,2642.8,2.4241]
[1723384846882,2.64821,2643.3,2642.8,5.07275]
[1723384847088,2.64806,2643.5,2642.9,2.6486]
[1723384847415,2.64806,2643.5,2643.0,2.64848]
[1723384847705,2.64813,2643.4,2643.0,0.772118]
[1723384848120,2.296,2643.6,2643.0,0.772118]
[1723384848121,2.64828,2643.3,2643.0,0.772118]
[1723384848319,2.64828,2643.3,2642.8,5.07276]
[1723384849184,2.64828,2643.3,2642.9,2.64859]
[1723384849769,2.64828,2643.3,2642.8,2.4241]
[1723384849770,2.64828,2643.3,2642.8,5.0728]
[1723384850373,2.64807,2643.5,2642.9,2.64859]
[1723384850990,2.64815,2643.4,2642.9,2.64859]
[1723384851191,2.64815,2643.4,2642.9,3.61904514]
[1723384856293,2.6481,2643.4,2643.0,2.64844]
[1723384856683,5.29627,2643.4,2642.9,0.97045514]
[1723384856916,5.29627,2643.4,2642.9,3.61905514]
[1723384856917,2.6481,2643.4,2642.9,3.61905514]
[1723384857215,2.6481,2643.4,2643.0,1.13404851]
[1723384861420,2.6481,2643.4,2642.9,2.6486]
[1723384861623,2.64821,2643.3,2642.8,5.07273]
[1723384861802,2.6481,2643.4,2642.8,5.07273]
[1723384862001,5.2963,2643.4,2642.9,2.64858]
[1723384862526,2.64823,2643.3,2642.9,2.64858]
[1723384863101,2.64811,2643.4,2642.9,3.720688]
[1723384863303,2.648,2643.5,2643.0,2.64845]
[1723384863501,4.94396,2643.6,2643.1,2.64839]
[1723384863690,2.64802,2643.5,2643.1,2.64839]
[1723384864091,3.77494,2643.6,2643.1,3.2852578]
[1723384864525,2.64785,2643.7,2643.2,2.6483]
[1723384864729,4.94327,2644.3,2643.8,2.64765]
[1723384864905,2.6471,2644.4,2643.9,2.912355]
[1723384865231,2.6471,2644.4,2643.8,2.64765]
[1723384865232,2.6471,2644.4,2643.8,2.7232808]
[1723384865529,2.6471,2644.4,2643.9,2.64758]
[1723384865728,2.6472,2644.3,2643.9,2.64758]
[1723384865948,2.6472,2644.3,2643.8,2.7233208]
[1723384866157,2.6472,2644.3,2643.9,0.27233208]
[1723384867441,2.64718,2644.4,2643.9,0.27233208]
[1723384867637,2.64727,2644.3,2643.9,0.27233208]
[1723384867861,2.64732,2644.2,2643.9,0.27233208]
[1723384868016,2.6472,2644.3,2643.8,2.6477]
[1723384868347,2.6472,2644.3,2643.8,5.29535]
[1723384868548,2.6472,2644.3,2643.9,0.5370994]
[1723384869251,7.3,2644.5,2644.1,2.64731]
[1723384869461,0.59255502,2644.8,2644.4,2.4387]
[1723384869704,2.64666,2644.9,2644.4,5.08575]
[1723384869957,2.6467,2644.8,2644.4,2.4387]
[1723384870253,7.3,2645.0,2644.5,2.64694]
[1723384870564,7.3,2645.0,2644.5,5.29387]
[1723384870862,9.94655,2645.0,2644.5,2.64693]
[1723384871411,2.64661,2644.9,2644.4,2.51432243]
[1723384871726,2.64661,2644.9,2644.4,3.03046767]
[1723384872123,2.64661,2644.9,2644.4,5.67755767]
[1723384872331,9.9465,2645.0,2644.5,2.647]
[1723384872530,2.64666,2644.9,2644.5,0.83245977]
[1723384872942,2.64665,2644.9,2644.5,0.83245977]
[1723384873324,7.3,2645.0,2644.5,3.47944977]
[1723384873538,5.29295,2645.1,2644.6,2.64688]
[1723384873539,2.64646,2645.1,2644.6,2.64688]
[1723384873865,2.3618,2645.2,2644.6,0.85651098]
[1723384874069,2.3618,2645.2,2644.6,3.50340098]
[1723384874070,5.00819,2645.2,2644.6,3.50340098]
[1723384874368,2.64639,2645.2,2644.8,2.4387]
[1723384875069,2.64636,2645.2,2644.8,2.4387]
[1723384875279,2.64645,2645.1,2644.8,2.4387]
[1723384875733,2.64636,2645.2,2644.8,2.4387]
[1723384875934,2.64636,2645.2,2644.8,2.99060979]
[1723384876369,7.3,2645.3,2644.9,0.07561486]
[1723384876571,9.94621,2645.3,2644.9,0.07561486]
[1723384876873,2.6463,2645.2,2644.8,2.99060979]
[1723384877034,2.6463,2645.2,2644.9,0.59952521]
[1723384877228,7.3,2645.3,2644.9,0.59952521]
[1723384877643,9.94627,2645.3,2644.9,0.59952521]
[1723384877853,7.3,2645.3,2644.9,0.59952521]
[1723384878056,2.64631,2645.2,2644.9,0.59952521]
[1723384878233,9.94623,2645.3,2644.5,2.4387]
[1723384878234,2.64673,2644.8,2644.5,2.4387]
[1723384878449,9.94623,2645.3,2644.5,2.4387]
[1723384878450,2.64655,2645.0,2644.5,2.4387]
[1723384878676,2.6466,2644.9,2644.5,2.4387]
[1723384878844,2.6466,2644.9,2644.5,2.947279]
[1723384879556,2.64671,2644.8,2644.2,5.0859]
[1723384879757,2.64661,2644.9,2644.0,2.4387]
[1723384879944,2.64745,2644.1,2643.7,2.4387]
[1723384880151,2.3618,2644.3,2643.5,5.08664]
[1723384880152,2.64735,2644.2,2643.5,5.08664]
[1723384880363,2.64735,2644.2,2643.7,2.64772]
[1723384880547,5.29472,2644.2,2643.7,2.64772]
[1723384880872,2.64756,2644.0,2643.6,0.264795]
[1723384881033,2.64756,2644.0,2643.5,5.08664]
[1723384881433,2.3618,2644.3,2643.5,2.4387]
[1723384881633,2.64765,2643.9,2643.2,2.4387]
[1723384881873,2.64765,2643.9,2643.3,2.64815]
[1723384882079,2.64778,2643.8,2643.2,5.0869]
[1723384882247,2.64765,2643.9,2643.3,0.50869]
[1723384882248,2.6478,2643.7,2643.3,0.50869]
[1723384883875,2.88349,2644.2,2642.8,5.64866]
[1723384883876,5.29653,2643.3,2642.8,2.4387]
[1723384884075,5.00951,2643.8,2642.0,5.35243]
[1723384884076,2.64807,2643.5,2642.4,2.64906]
[1723384884243,2.64851,2643.0,2642.5,2.4387]
[1723384884439,2.64851,2643.0,2642.5,5.08768]
[1723384884640,5.29709,2643.0,2642.5,3.212372]
[1723384884860,5.851781,2643.7,2642.2,5.08795]
[1723384884861,2.64876,2642.8,2642.2,5.08795]
[1723384885093,2.64876,2642.8,2642.2,5.08794]
[1723384885278,2.64876,2642.8,2642.2,7.73718]
[1723384885481,2.64911,2642.4,2641.9,2.4387]
[1723384885901,2.64926,2642.3,2641.9,2.4387]
[1723384886089,2.64943,2642.1,2641.5,2.64994]
[1723384886398,2.64943,2642.1,2640.8,2.703]
[1723384886399,2.64967,2641.9,2641.2,7.76678]
[1723384886582,2.64967,2641.9,2641.3,0.776678]
[1723384886784,2.64954,2642.0,2641.3,0.776678]
[1723384886983,2.64981,2641.7,2641.2,2.4663]
[1723384887770,2.64977,2641.8,2641.2,2.4663]
[1723384888095,2.64993,2641.6,2641.0,2.65042]
[1723384888300,2.64993,2641.6,2640.9,2.4663]
[1723384888510,2.64993,2641.6,2640.9,2.65059]
[1723384888811,2.64992,2641.6,2640.9,2.65052]
[1723384889008,2.64992,2641.6,2640.8,2.65066]
[1723384889299,5.281,2642.2,2640.9,0.511696]
[1723384889501,5.281,2642.2,2641.4,2.65005]
[1723384889502,7.93032,2642.2,2641.4,2.65005]
[1723384889715,2.703,2642.6,2641.5,0.07570623]
[1723384889864,2.64919,2642.4,2641.7,2.64977]
[1723384890066,2.64921,2642.3,2641.7,2.64977]
[1723384890304,2.64921,2642.3,2641.5,2.99062477]
[1723384890305,2.64932,2642.2,2641.5,5.64056477]
[1723384890611,2.64919,2642.4,2641.6,0.62139418]
[1723384890766,2.64911,2642.4,2641.7,2.64974]
[1723384890983,7.57892,2642.6,2641.7,2.99578375]
[1723384891178,7.57891,2642.6,2641.9,2.64958]
[1723384891385,5.687831,2642.6,2641.9,2.64958]
[1723384891596,3.0,2642.5,2641.9,2.64958]
[1723384891819,3.0,2642.5,2641.7,0.34604375]
[1723384892025,3.0,2642.5,2642.0,2.6495]
[1723384892716,5.64903,2642.5,2641.7,2.64975]
[1723384892921,2.64911,2642.4,2641.7,2.64975]
[1723384893091,3.0,2642.5,2641.9,2.64953]
[1723384893292,2.64874,2642.8,2642.1,2.64933]
[1723384893523,9.581,2642.9,2642.1,2.64933]
[1723384893694,9.581,2642.9,2642.2,2.72492797]
[1723384893695,2.64871,2642.8,2642.2,2.72492797]
[1723384894197,7.3,2642.9,2642.4,2.64903]
[1723384894384,7.3,2643.3,2642.8,2.64863]
[1723384894584,22.41814,2643.4,2642.5,0.07568157]
[1723384894585,22.41814,2643.4,2642.7,2.64873]
[1723384894813,25.152847,2643.4,2642.7,2.64873]
[1723384894992,25.152847,2643.4,2642.8,2.64862]
[1723384895728,25.152847,2643.4,2642.8,2.64863]
[1723384895928,22.41814,2643.4,2642.8,2.72430215]
[1723384896086,22.41814,2643.4,2642.8,2.64863]
[1723384896301,19.77,2643.4,2642.9,2.64857]
[1723384896512,19.77,2643.4,2643.0,2.64848]
[1723384896716,12.22856,2644.0,2643.4,2.64803]
[1723384896914,14.87613,2644.0,2643.4,2.64803]
[1723384897122,9.94756,2644.0,2643.4,2.64803]
[1723384897306,9.94756,2644.0,2643.4,5.29607]
[1723384897887,7.57532,2644.4,2643.6,2.64784]
[1723384898091,2.64728,2644.3,2643.6,2.64784]
[1723384898298,4.92814,2644.4,2643.6,2.64784]
[1723384898299,2.64732,2644.2,2643.6,2.64784]
[1723384898731,2.64743,2644.1,2643.6,0.07564545]
[1723384898887,2.64743,2644.1,2643.5,2.648]
[1723384899084,3.140034,2644.3,2643.7,2.64774]
[1723384899285,2.64692,2644.6,2643.7,2.64772]
[1723384899489,2.64713,2644.4,2643.7,2.64772]
[1723384899829,2.64751,2644.0,2643.5,2.6479]
[1723384899987,2.6477,2643.8,2643.2,5.11451]
[1723384900425,2.64753,2644.0,2643.3,2.64813]
[1723384900426,2.64759,2644.0,2643.3,2.64813]
[1723384900721,5.788003,2644.0,2643.3,2.64813]
[1723384901228,3.140413,2644.0,2643.4,2.6481]
[1723384901423,0.5421413,2643.9,2643.4,2.6481]
[1723384901790,3.140413,2644.0,2643.4,2.6481]
[1723384902006,3.140413,2644.0,2643.4,5.29614]
[1723384902202,3.140413,2644.0,2643.4,5.29607]
[1723384902498,0.492853,2644.0,2643.4,2.64803]
[1723384902701,2.281,2644.1,2643.4,2.64803]
[1723384902897,2.64732,2644.2,2643.2,0.07564824]
[1723384903115,2.64728,2644.3,2643.7,2.64778]
[1723384903531,5.281,2644.5,2643.7,2.64774]
[1723384903532,4.92806,2644.5,2643.7,2.64774]
[1723384903830,2.64721,2644.3,2643.7,2.64774]
[1723384904030,3.17528,2644.4,2643.8,2.64768]
[1723384904239,2.64718,2644.4,2643.8,2.64768]
[1723384904793,2.64722,2644.3,2643.7,2.64774]
[1723384904996,2.64734,2644.2,2643.6,2.64788]
[1723384905221,3.176792,2644.2,2643.5,2.64795]
[1723384905540,2.64745,2644.1,2643.5,2.64795]
[1723384905839,2.64745,2644.1,2643.5,2.64794]
[1723384906193,2.64734,2644.2,2643.5,5.29588]
[1723384906398,2.64746,2644.1,2643.5,2.64794]
[1723384906660,2.64757,2644.0,2643.4,2.4663]
[1723384906932,2.64756,2644.0,2643.3,2.64812]
[1723384907092,2.9387894,2644.0,2643.3,2.64812]
[1723384907293,2.9387894,2644.0,2643.3,5.29626]
[1723384907533,2.9387894,2644.0,2643.3,2.64812]
[1723384908139,2.64792,2643.6,2643.1,2.3533]
[1723384908367,0.264792,2643.5,2642.9,2.64857]
[1723384908644,2.4197,2643.8,2642.7,5.00204]
[1723384908645,2.64811,2643.4,2642.7,5.00204]
[1723384908800,2.64826,2643.3,2642.7,5.00204]
[1723384908997,2.64826,2643.3,2642.5,2.64894]
[1723384908998,2.6483,2643.2,2642.5,2.64894]
[1723384909355,2.64846,2643.1,2642.5,2.64894]
[1723384909513,2.6483,2643.2,2642.6,2.64881]
[1723384909702,2.64826,2643.3,2642.7,2.64878]
[1723384910238,2.64831,2643.2,2642.7,2.64878]
[1723384910442,2.64831,2643.2,2642.5,2.649]
[1723384910443,2.6484,2643.1,2642.5,2.649]
[1723384910732,2.64861,2642.9,2642.0,2.3533]
[1723384910921,2.64882,2642.7,2642.1,2.64934]
[1723384911848,2.64861,2642.9,2642.3,5.29834]
[1723384912047,2.64861,2642.9,2642.3,2.64915]
[1723384912550,2.64861,2642.9,2642.2,2.64929]
[1723384912551,2.64872,2642.8,2642.2,2.64929]
[1723384912856,2.6488,2642.7,2642.1,2.64935]
[1723384913207,2.6488,2642.7,2642.0,2.3533]
[1723384913411,2.64867,2642.9,2642.0,5.3533]
[1723384913643,2.64878,2642.8,2642.1,5.29865]
[1723384913835,2.64892,2642.6,2642.0,2.3533]
[1723384914030,2.64881,2642.7,2642.1,2.64939]
[1723384914553,2.64865,2642.9,2642.3,2.64911]
[1723384914748,3.178111,2643.1,2642.4,2.6491]
[1723384914951,1.1097811,2643.0,2642.4,2.6491]
[1723384915513,2.6486,2642.9,2642.4,2.6491]
[1723384915832,2.64877,2642.8,2642.2,2.6493]
[1723384916624,2.64877,2642.8,2642.2,5.29849]
[1723384916824,2.6486,2642.9,2642.3,2.64915]
[1723384917044,2.6486,2642.9,2642.2,3.179089]
[1723384917326,2.64872,2642.8,2642.2,3.179089]
[1723384917528,2.6486,2642.9,2642.2,3.179089]
[1723384917850,5.29726,2642.9,2642.3,2.64915]
[1723384918238,5.29727,2642.9,2642.3,2.64915]
[1723384918441,2.64846,2643.1,2642.5,2.649]
[1723384918648,2.64846,2643.1,2642.3,2.64915]
[1723384918649,2.64852,2643.0,2642.3,5.29826]
[1723384918830,2.64852,2643.0,2642.4,2.64909]
[1723384919541,0.506816,2643.1,2642.2,2.3533]
[1723384919866,2.4197,2643.2,2642.1,2.64931]
[1723384919867,2.64862,2642.9,2642.1,2.64931]
[1723384920176,2.64862,2642.9,2641.9,5.3533]
[1723384920177,2.64881,2642.7,2642.2,2.63171996]
[1723384920329,2.64881,2642.7,2642.1,2.64939]
[1723384920772,5.06851,2642.7,2642.1,2.64939]
[1723384920977,5.06851,2642.7,2642.1,5.29874]